fUSD/lending_fUSD_20240105
["ID","MTS","AMOUNT","RATE_DAILY","PERIOD"]
[310287956,1704463857117,-2366.41,0.00030136,2]
[310287957,1704463857127,-500.0,0.00030136,2]
[310287958,1704463857136,-500.0,0.00030136,2]
[310287959,1704463857146,-500.0,0.00030136,2]
[310287960,1704463857155,-500.0,0.00030136,2]
[310287961,1704463857165,-500.0,0.00030136,2]
[310287962,1704463857174,-500.0,0.00030136,2]
[310287963,1704463857183,-500.0,0.00030136,2]
[310287964,1704463857194,-500.0,0.00030136,2]
[310287965,1704463857203,-5440.99,0.00030136,2]
[310287966,1704463857211,-500.0,0.00030136,2]
[310287967,1704463857221,-1558.45,0.00030136,2]
[310287968,1704463857231,-3361.08,0.00030136,2]
[310287969,1704463857240,-500.0,0.00030136,2]
[310287970,1704463857249,-500.0,0.00030136,2]
[310287971,1704463857260,-500.0,0.00030136,2]
[310287972,1704463857269,-500.0,0.00030136,2]
[310287973,1704463857278,-1062.83,0.00030136,2]
[310287974,1704463857289,-500.0,0.00030136,2]
[310287975,1704463857298,-500.0,0.00030136,2]
[310287976,1704463857307,-500.0,0.00030136,2]
[310287977,1704463857317,-500.0,0.00030136,2]
[310287978,1704463857326,-812.59,0.00030136,2]
[310287979,1704463857335,-646.75,0.00030136,2]
[310287980,1704463857345,-500.0,0.00030136,2]
[310287981,1704463857354,-1323.29,0.00030136,2]
[310287982,1704463857364,-500.0,0.00030136,2]
[310287983,1704463857374,-500.0,0.00030136,2]
[310287984,1704463857383,-500.0,0.00030136,2]
[310287985,1704463857393,-500.0,0.00030136,2]
[310287986,1704463857403,-510.56626471,0.00030136,2]
[310287987,1704463857412,-500.0,0.00030136,2]
[310287988,1704463857421,-500.0,0.00030136,2]
[310287989,1704463857432,-16516.01,0.00030136,2]
[310287990,1704463857441,-747.13,0.00030136,2]
[310287991,1704463857451,-8220.31,0.00030136,2]
[310287992,1704463857460,-358.30787006,0.00030136,2]
[310287993,1704463857469,-500.0,0.00030136,2]
[310287994,1704463857479,-500.0,0.00030136,2]
[310287995,1704463857488,-500.0,0.00030136,2]
[310287996,1704463857498,-500.0,0.00030136,2]
[310287997,1704463857509,-500.0,0.00030136,2]
[310287998,1704463857518,-500.0,0.00030136,2]
[310287999,1704463857527,-500.0,0.00030136,2]
[310288000,1704463857537,-500.0,0.00030136,2]
[310288001,1704463857547,-1218.24,0.00030136,2]
[310288002,1704463857558,-188.55437321,0.00030136,2]
[310288003,1704463857567,-678.9,0.00030136,2]
[310288004,1704463857576,-308.90423367,0.00030136,2]
[310288005,1704463857586,-500.0,0.00030136,2]
[310288006,1704463857595,-509.33,0.00030136,2]
[310288007,1704463857606,-1093.85,0.00030136,2]
[310288008,1704463857615,-500.0,0.00030136,2]
[310288009,1704463857625,-500.0,0.00030136,2]
[310288010,1704463857635,-500.0,0.00030136,2]
[310288011,1704463857645,-500.0,0.00030136,2]
[310288012,1704463857654,-500.0,0.00030136,2]
[310288013,1704463857664,-500.0,0.00030136,2]
[310288014,1704463857673,-500.0,0.00030136,2]
[310288015,1704463857684,-625.64,0.00030136,2]
[310288016,1704463857692,-500.0,0.00030136,2]
[310288017,1704463857702,-500.0,0.00030136,2]
[310288018,1704463857712,-368.09194489,0.00030136,2]
[310288019,1704463857721,-500.0,0.00030136,2]
[310288020,1704463857731,-500.0,0.00030136,2]
[310288021,1704463857740,-500.0,0.00030136,2]
[310288022,1704463857750,-500.0,0.00030136,2]
[310288023,1704463857762,-528.93,0.00030136,2]
[310288024,1704463857771,-1229.71,0.00030136,2]
[310288025,1704463857780,-500.0,0.00030136,2]
[310288026,1704463857789,-500.0,0.00030136,2]
[310288027,1704463857798,-696.27,0.00030136,2]
[310288028,1704463857808,-500.0,0.00030136,2]
[310288029,1704463857817,-500.0,0.00030136,2]
[310288030,1704463857827,-500.0,0.00030136,2]
[310288031,1704463857836,-500.0,0.00030136,2]
[310288032,1704463857847,-500.0,0.00030136,2]
[310288033,1704463857857,-500.0,0.00030136,2]
[310288034,1704463857867,-906.38,0.00030136,2]
[310288035,1704463857877,-500.0,0.00030136,2]
[310288036,1704463857886,-500.0,0.00030136,2]
[310288037,1704463857895,-1559.68,0.00030136,2]
[310288038,1704463857904,-500.0,0.00030136,2]
[310288039,1704463857913,-239.86904708,0.00030136,2]
[310288040,1704463857923,-500.0,0.00030136,2]
[310288041,1704463857932,-1228.93,0.00030136,2]
[310288042,1704463857942,-500.0,0.00030136,2]
[310288043,1704463857951,-500.0,0.00030136,2]
[310288044,1704463857958,-500.0,0.00030136,2]
[310288045,1704463857964,-1060.36,0.00030136,2]
[310288046,1704463857973,-500.0,0.00030136,2]
[310288047,1704463857982,-500.0,0.00030136,2]
[310288048,1704463857993,-1479.47,0.00030136,2]
[310288049,1704463858004,-500.0,0.00030136,2]
[310288050,1704463858013,-500.0,0.00030136,2]
[310288051,1704463858023,-500.0,0.00030136,2]
[310288052,1704463858033,-500.0,0.00030136,2]
[310288053,1704463858042,-500.0,0.00030136,2]
[310288054,1704463858053,-500.0,0.00030136,2]
[310288055,1704463858062,-535.98,0.00030136,2]
[310288056,1704463858073,-500.0,0.00030136,2]
[310288057,1704463858083,-500.0,0.00030136,2]
[310288058,1704463858093,-1024.05,0.00030136,2]
[310288059,1704463858103,-510.81369629,0.00030136,2]
[310288060,1704463858112,-20552.87,0.00030136,2]
[310288061,1704463858122,-732.24,0.00030136,2]
[310288062,1704463858131,-500.0,0.00030136,2]
[310288063,1704463858141,-500.0,0.00030136,2]
[310288064,1704463858150,-500.0,0.00030136,2]
[310288065,1704463858159,-500.0,0.00030136,2]
[310288066,1704463858169,-764.89,0.00030136,2]
[310288067,1704463858178,-500.0,0.00030136,2]
[310288068,1704463858187,-500.0,0.00030136,2]
[310288069,1704463858197,-1384.47,0.00030136,2]
[310288070,1704463858207,-500.0,0.00030136,2]
[310288071,1704463858216,-500.34181264,0.00030136,2]
[310288072,1704463858225,-2343.7,0.00030136,2]
[310288073,1704463858235,-855.82,0.00030136,2]
[310288074,1704463858244,-500.0,0.00030136,2]
[310288075,1704463858254,-1443.03,0.00030136,2]
[310288076,1704463858264,-500.0,0.00030136,2]
[310288077,1704463858274,-500.0,0.00030136,2]
[310288078,1704463858283,-1467.75,0.00030136,2]
[310288079,1704463858293,-246.94785736,0.00030136,2]
[310288080,1704463858303,-500.0,0.00030136,2]
[310288081,1704463858313,-500.0,0.00030136,2]
[310288082,1704463858322,-2427.76,0.00030136,2]
[310288083,1704463858331,-500.0,0.00030136,2]
[310288084,1704463858341,-500.0,0.00030136,2]
[310288085,1704463858351,-500.0,0.00030136,2]
[310288086,1704463858360,-500.0,0.00030136,2]
[310288087,1704463858370,-500.0,0.00030136,2]
[310288088,1704463858380,-500.0,0.00030136,2]
[310288089,1704463858390,-500.0,0.00030136,2]
[310288090,1704463858400,-1262.81,0.00030136,2]
[310288091,1704463858410,-500.0,0.00030136,2]
[310288092,1704463858420,-500.0,0.00030136,2]
[310288093,1704463858430,-976.69,0.00030136,2]
[310288094,1704463858440,-500.0,0.00030136,2]
[310288095,1704463858450,-500.0,0.00030136,2]
[310288096,1704463858459,-502.15,0.00030136,2]
[310288097,1704463858469,-963.68,0.00030136,2]
[310288098,1704463858478,-500.0,0.00030136,2]
[310288099,1704463858488,-1404.49,0.00030136,2]
[310288100,1704463858497,-500.0,0.00030136,2]
[310288101,1704463858506,-500.0,0.00030136,2]
[310288102,1704463858516,-1710.42,0.00030136,2]
[310288103,1704463858526,-500.0,0.00030136,2]
[310288104,1704463858536,-500.28315028,0.00030136,2]
[310288105,1704463858546,-827.77,0.00030136,2]
[310288106,1704463858556,-1043.98,0.00030136,2]
[310288107,1704463858566,-500.0,0.00030136,2]
[310288108,1704463858575,-500.0,0.00030136,2]
[310288109,1704463858585,-500.0,0.00030136,2]
[310288110,1704463858595,-511.03036456,0.00030136,2]
[310288111,1704463858607,-670.86,0.00030136,2]
[310288112,1704463858616,-500.0,0.00030136,2]
[310288113,1704463858626,-552.27,0.00030136,2]
[310288114,1704463858636,-500.0,0.00030136,2]
[310288115,1704463858647,-622.24971541,0.00030136,2]
[310288116,1704463858657,-500.0,0.00030136,2]
[310288117,1704463858666,-2031.67,0.00030136,2]
[310288118,1704463858675,-500.0,0.00030136,2]
[310288119,1704463858685,-500.0,0.00030136,2]
[310288120,1704463858696,-500.0,0.00030136,2]
[310288121,1704463858706,-737.13,0.00030136,2]
[310288122,1704463858715,-500.0,0.00030136,2]
[310288123,1704463858725,-593.61,0.00030136,2]
[310288124,1704463858735,-7439.39,0.00030136,2]
[310288125,1704463858745,-973.07,0.00030136,2]
[310288126,1704463858756,-500.0,0.00030136,2]
[310288127,1704463858766,-563.27,0.00030136,2]
[310288128,1704463858776,-500.0,0.00030136,2]
[310288129,1704463858786,-585.98,0.00030136,2]
[310288130,1704463858796,-500.0,0.00030136,2]
[310288131,1704463858805,-878.72,0.00030136,2]
[310288132,1704463858815,-500.0,0.00030136,2]
[310288133,1704463858824,-500.0,0.00030136,2]
[310288134,1704463858834,-1022.6,0.00030136,2]
[310288135,1704463858843,-500.0,0.00030136,2]
[310288136,1704463858853,-500.0,0.00030136,2]
[310288137,1704463858862,-623.85608019,0.00030136,2]
[310288138,1704463858872,-1959.09,0.00030136,2]
[310288139,1704463858882,-500.0,0.00030136,2]
[310288140,1704463858892,-500.0,0.00030136,2]
[310288141,1704463858902,-732.57,0.00030136,2]
[310288142,1704463858911,-11053.17,0.00030136,2]
[310288143,1704463858921,-500.0,0.00030136,2]
[310288144,1704463858930,-500.0,0.00030136,2]
[310288145,1704463858940,-500.0,0.00030136,2]
[310288146,1704463858949,-757.66,0.00030136,2]
[310288147,1704463858958,-500.0,0.00030136,2]
[310288148,1704463858968,-500.0,0.00030136,2]
[310288149,1704463858977,-511.54,0.00030136,2]
[310288150,1704463858986,-500.0,0.00030136,2]
[310288151,1704463858996,-500.0,0.00030136,2]
[310288152,1704463859006,-500.0,0.00030136,2]
[310288153,1704463859016,-500.0,0.00030136,2]
[310288154,1704463859026,-500.0,0.00030136,2]
[310288155,1704463859035,-3419.36,0.00030136,2]
[310288156,1704463859045,-1241.64,0.00030136,2]
[310288157,1704463859054,-500.0,0.00030136,2]
[310288158,1704463859064,-1092.45,0.00030136,2]
[310288159,1704463859074,-500.0,0.00030136,2]
[310288160,1704463859083,-2084.07,0.00030136,2]
[310288161,1704463859092,-558.28,0.00030136,2]
[310288162,1704463859102,-500.0,0.00030136,2]
[310288163,1704463859111,-500.0,0.00030136,2]
[310288164,1704463859121,-500.0,0.00030136,2]
[310288165,1704463859130,-500.0,0.00030136,2]
[310288166,1704463859140,-500.0,0.00030136,2]
[310288167,1704463859149,-1946.6,0.00030136,2]
[310288168,1704463859158,-500.0,0.00030136,2]
[310288169,1704463859168,-500.0,0.00030136,2]
[310288170,1704463859178,-1013.42,0.00030136,2]
[310288171,1704463859187,-500.0,0.00030136,2]
[310288172,1704463859196,-500.0,0.00030136,2]
[310288173,1704463859206,-500.0,0.00030136,2]
[310288174,1704463859216,-500.0,0.00030136,2]
[310288175,1704463859225,-500.0,0.00030136,2]
[310288176,1704463859235,-500.0,0.00030136,2]
[310288177,1704463859245,-500.0,0.00030136,2]
[310288178,1704463859256,-1212.22,0.00030136,2]
[310288179,1704463859267,-505.94935005,0.00030136,2]
[310288180,1704463859277,-444.92487921,0.00030136,2]
[310288181,1704463859287,-702.4,0.00030136,2]
[310288182,1704463859297,-500.0,0.00030136,2]
[310288183,1704463859307,-2361.2,0.00030136,2]
[310288184,1704463859317,-500.0,0.00030136,2]
[310288185,1704463859327,-1128.19,0.00030136,2]
[310288186,1704463859336,-500.0,0.00030136,2]
[310288187,1704463859346,-500.0,0.00030136,2]
[310288188,1704463859355,-500.0,0.00030136,2]
[310288189,1704463859365,-764.39,0.00030136,2]
[310288190,1704463859375,-500.0,0.00030136,2]
[310288191,1704463859384,-517.07,0.00030136,2]
[310288192,1704463859394,-501.29717454,0.00030136,2]
[310288193,1704463859404,-503.86161464,0.00030136,2]
[310288194,1704463859413,-502.4984177,0.00030136,2]
[310288195,1704463859423,-500.0,0.00030136,2]
[310288196,1704463859433,-1542.41,0.00030136,2]
[310288197,1704463859442,-1440.35,0.00030136,2]
[310288198,1704463859451,-500.0,0.00030136,2]
[310288199,1704463859460,-500.0,0.00030136,2]
[310288200,1704463859469,-500.0,0.00030136,2]
[310288201,1704463859479,-715.0,0.00030136,2]
[310288202,1704463859489,-500.0,0.00030136,2]
[310288203,1704463859652,-500.0,0.00030136,2]
[310288204,1704463859662,-500.0,0.00030136,2]
[310288205,1704463859672,-500.0,0.00030136,2]
[310288206,1704463859682,-500.0,0.00030136,2]
[310288207,1704463859692,-500.0,0.00030136,2]
[310288208,1704463859701,-2358.36,0.00030136,2]
[310288209,1704463859711,-500.0,0.00030136,2]
[310288210,1704463859721,-500.0,0.00030136,2]
[310288211,1704463859732,-224.07099103,0.00030136,2]
[310288212,1704463859741,-500.0,0.00030136,2]
[310288213,1704463859750,-1017.07,0.00030136,2]
[310288214,1704463859760,-500.0,0.00030136,2]
[310288215,1704463859770,-5040.24,0.00030136,2]
[310288216,1704463859779,-500.0,0.00030136,2]
[310288217,1704463859789,-500.0,0.00030136,2]
[310288218,1704463859799,-1054.48,0.00030136,2]
[310288219,1704463859808,-500.0,0.00030136,2]
[310288220,1704463859818,-500.0,0.00030136,2]
[310288221,1704463859827,-500.0,0.00030136,2]
[310288222,1704463859836,-500.0,0.00030136,2]
[310288223,1704463859846,-506.29016448,0.00030136,2]
[310288224,1704463859855,-915.19,0.00030136,2]
[310288225,1704463859864,-8316.18,0.00030136,2]
[310288226,1704463859874,-500.0,0.00030136,2]
[310288227,1704463859883,-500.0,0.00030136,2]
[310288228,1704463859892,-1182.97,0.00030136,2]
[310288229,1704463859902,-5436.81,0.00030136,2]
[310288230,1704463859912,-500.0,0.00030136,2]
[310288231,1704463859921,-500.0,0.00030136,2]
[310288232,1704463859931,-500.0,0.00030136,2]
[310288233,1704463859940,-504.64595624,0.00030136,2]
[310288234,1704463859950,-826.79,0.00030136,2]
[310288235,1704463859959,-500.0,0.00030136,2]
[310288236,1704463859969,-501.41063676,0.00030136,2]
[310288237,1704463859978,-500.0,0.00030136,2]
[310288238,1704463859988,-709.6,0.00030136,2]
[310288239,1704463859998,-500.0,0.00030136,2]
[310288240,1704463860009,-500.0,0.00030136,2]
[310288241,1704463860018,-526.58,0.00030136,2]
[310288242,1704463860028,-574.8,0.00030136,2]
[310288243,1704463860038,-856.02,0.00030136,2]
[310288244,1704463860048,-2833.48,0.00030136,2]
[310288245,1704463860057,-500.0,0.00030136,2]
[310288246,1704463860067,-557.01,0.00030136,2]
[310288247,1704463860076,-528.04646502,0.00030136,2]
[310288248,1704463860086,-2133.57243463,0.00030136,7]
[310288249,1704463860095,-701.77,0.00030136,2]
[310288250,1704463860105,-500.0,0.00030136,2]
[310288251,1704463860113,-659.74,0.00030136,2]
[310288252,1704463860124,-153.84,0.00030137,2]
[310288253,1704463860134,-250.83664573,0.00030182,2]
[310288254,1704463860144,-399.60362884,0.000302,2]
[310288255,1704463860154,-267.67877059,0.000302,2]
[310288256,1704463860163,-1232.65242944,0.000302,2]
[310288257,1704463860173,-302.36265307,0.000302,2]
[310288258,1704463860183,-589.6724732,0.000302,2]
[310288259,1704463860193,-11945.81411519,0.00030258,4]
[310288260,1704463860203,-189.18259,0.0003027,2]
[310288261,1704463860213,-4980.46454852,0.000303,2]
[310288262,1704463860223,-388356.52951976,0.000303,2]
[310288263,1704463860233,-266917.82419103,0.000303,2]
[310288264,1704463860242,-151.0,0.000303,7]
[310288265,1704463860253,-151.0,0.000303,7]
[310288266,1704463860263,-161.3155,0.000303,7]
[310288267,1704463860272,-161.3155,0.000303,7]
[310288268,1704463860282,-163.4,0.000303,7]
[310288269,1704463860291,-163.4,0.000303,7]
[310288270,1704463860300,-151.0,0.000303,7]
[310288271,1704463860310,-151.0,0.000303,7]
[310288272,1704463860320,-170.139228,0.000303,7]
[310288273,1704463860329,-151.0,0.000303,7]
[310288274,1704463860340,-151.0,0.000303,7]
[310288275,1704463860350,-151.0,0.000303,7]
[310288276,1704463860359,-190.808331,0.000303,7]
[310288277,1704463860370,-151.0,0.000303,7]
[310288278,1704463860380,-10000.0,0.000303,7]
[310288279,1704463860389,-10000.0,0.000303,7]
[310288280,1704463860399,-10000.0,0.000303,7]
[310288281,1704463860409,-4473.142131,0.000303,7]
[310288282,1704463860418,-4473.142131,0.000303,7]
[310288283,1704463860429,-185.208853,0.000303,7]
[310288284,1704463860440,-185.208853,0.000303,7]
[310288285,1704463860450,-759.511757,0.000303,7]
[310288286,1704463860459,-759.511757,0.000303,7]
[310288287,1704463860469,-151.0,0.000303,7]
[310288288,1704463860479,-670.734672,0.000303,7]
[310288289,1704463860489,-670.734672,0.000303,7]
[310288290,1704463860498,-151.0,0.000303,7]
[310288291,1704463860509,-151.0,0.000303,7]
[310288292,1704463860518,-151.0,0.000303,7]
[310288293,1704463860528,-236.259597,0.000303,7]
[310288294,1704463860538,-236.259597,0.000303,7]
[310288295,1704463860549,-719.83383,0.000303,7]
[310288296,1704463860559,-719.83383,0.000303,7]
[310288297,1704463860569,-351.608158,0.000303,7]
[310288298,1704463860578,-351.608158,0.000303,7]
[310288299,1704463860589,-441.69152,0.000303,7]
[310288300,1704463860600,-441.69152,0.000303,7]
[310288301,1704463860610,-381.49114796,0.0003031,5]
[310288302,1704463860619,-1000.0,0.0003031,2]
[310288303,1704463860628,-463.1885,0.0003031,2]
[310288304,1704463860639,-748.78,0.00030384,2]
[310288305,1704463860648,-365.60499966,0.00030406,2]
[310288306,1704463860658,-151.0,0.00030408,7]
[310288307,1704463860667,-151.0,0.00030408,7]
[310288308,1704463860679,-161.3155,0.00030408,7]
[310288309,1704463860689,-161.3155,0.00030408,7]
[310288310,1704463860699,-163.4,0.00030408,7]
[310288311,1704463860708,-163.4,0.00030408,7]
[310288312,1704463860717,-151.0,0.00030408,7]
[310288313,1704463860730,-151.0,0.00030408,7]
[310288314,1704463860739,-151.0,0.00030408,7]
[310288315,1704463860749,-151.0,0.00030408,7]
[310288316,1704463860759,-151.0,0.00030408,7]
[310288317,1704463860769,-255.684097,0.00030408,7]
[310288318,1704463860779,-10000.0,0.00030408,7]
[310288319,1704463860788,-10000.0,0.00030408,7]
[310288320,1704463860799,-10000.0,0.00030408,7]
[310288321,1704463860809,-4473.142131,0.00030408,7]
[310288322,1704463860819,-4473.142131,0.00030408,7]
[310288323,1704463860830,-185.208853,0.00030408,7]
[310288324,1704463860841,-185.208853,0.00030408,7]
[310288325,1704463860851,-759.511757,0.00030408,7]
[310288326,1704463860862,-759.511757,0.00030408,7]
[310288327,1704463860872,-152.45787,0.00030408,7]
[310288328,1704463860881,-670.734672,0.00030408,7]
[310288329,1704463860891,-670.734672,0.00030408,7]
[310288330,1704463860901,-151.0,0.00030408,7]
[310288331,1704463860911,-156.54389,0.00030408,7]
[310288332,1704463860920,-151.0,0.00030408,7]
[310288333,1704463860931,-236.259597,0.00030408,7]
[310288334,1704463860941,-236.259597,0.00030408,7]
[310288335,1704463860951,-719.83383,0.00030408,7]
[310288336,1704463860961,-719.83383,0.00030408,7]
[310288337,1704463860971,-351.608158,0.00030408,7]
[310288338,1704463860980,-351.608158,0.00030408,7]
[310288339,1704463860990,-441.69152,0.00030408,7]
[310288340,1704463861000,-441.69152,0.00030408,7]
[310288341,1704463861009,-354.37716682,0.00030408,10]
[310288342,1704463861019,-395074.83663525,0.00030408,2]
[310288343,1704463861038,-234.78997094,0.00030408,4]
[310288344,1704463861047,-220.26666446,0.00030408,4]
[310288345,1704463861057,-155.55451817,0.00030408,4]
[310288346,1704463861066,-249.39139602,0.00030408,4]
[310288347,1704463861075,-8277.72626134,0.00030408,4]
[310288348,1704463861085,-155.0,0.00030408,4]
[310288349,1704463861095,-310.80558639,0.00030408,4]
[310288350,1704463861104,-478.91379089,0.00030408,4]
[310288351,1704463861114,-4609.49037417,0.00030408,4]
[310288352,1704463861124,-1622.55779776,0.00030408,4]
[310288353,1704463861134,-6414.95009099,0.00030408,4]
[310288354,1704463861144,-3920.35158571,0.00030408,2]
[310288355,1704463861153,-540.90072547,0.00030408,4]
[310288356,1704463861163,-5149.51614214,0.00030408,4]
[310288357,1704463861173,-400.0,0.00030408,2]
[310288358,1704463861183,-155.40173906,0.00030409,4]
[310288359,1704463861193,-36003.06051708,0.00030409,4]
[310288360,1704463861202,-2130.95546807,0.00030409,4]
[310288361,1704463861211,-500.0,0.00030409,2]
[310288362,1704463861221,-500.0,0.00030409,2]
[310288363,1704463861230,-221.36139,0.0003041,4]
[310288364,1704463861239,-200.0,0.0003041,2]
[310288365,1704463861249,-681.60776068,0.0003041,4]
[310288366,1704463861259,-527.94272105,0.0003041,4]
[310288367,1704463861268,-5937.60574647,0.0003041,4]
[310288368,1704463861278,-500.0,0.0003041,2]
[310288369,1704463861287,-500.0,0.0003041,2]
[310288370,1704463861296,-500.0,0.0003041,2]
[310288371,1704463861306,-500.0,0.0003041,2]
[310288372,1704463861315,-500.0,0.0003041,2]
[310288373,1704463861325,-500.0,0.0003041,2]
[310288374,1704463861334,-500.0,0.0003041,2]
[310288375,1704463861343,-500.0,0.0003041,2]
[310288376,1704463861352,-500.0,0.0003041,2]
[310288377,1704463861362,-578.99,0.0003041,2]
[310288378,1704463861371,-570.77,0.0003041,2]
[310288379,1704463861380,-500.0,0.0003041,2]
[310288380,1704463861391,-500.0,0.0003041,2]
[310288381,1704463861402,-500.0,0.0003041,2]
[310288382,1704463861411,-500.0,0.0003041,2]
[310288383,1704463861423,-500.0,0.0003041,2]
[310288384,1704463861435,-500.0,0.0003041,2]
[310288385,1704463861445,-500.0,0.0003041,2]
[310288386,1704463861455,-500.0,0.0003041,2]
[310288387,1704463861464,-500.0,0.0003041,2]
[310288388,1704463861473,-500.0,0.0003041,2]
[310288389,1704463861483,-500.0,0.0003041,2]
[310288390,1704463861492,-500.0,0.0003041,2]
[310288391,1704463861502,-500.0,0.0003041,2]
[310288392,1704463861511,-527.30114492,0.0003041,2]
[310288393,1704463861521,-500.0,0.0003041,2]
[310288394,1704463861530,-500.0,0.0003041,2]
[310288395,1704463861540,-964.18,0.0003041,2]
[310288396,1704463861549,-500.0,0.0003041,2]
[310288397,1704463861559,-500.0,0.0003041,2]
[310288398,1704463861568,-500.0,0.0003041,2]
[310288399,1704463861578,-343.41047183,0.0003041,2]
[310288400,1704463861588,-500.0,0.0003041,10]
[310288401,1704463861597,-500.0,0.0003041,2]
[310288402,1704463861606,-500.0,0.0003041,2]
[310288403,1704463861616,-500.0,0.0003041,2]
[310288404,1704463861626,-500.0,0.0003041,2]
[310288405,1704463861636,-500.0,0.0003041,2]
[310288406,1704463861645,-500.0,0.0003041,2]
[310288407,1704463861655,-188.88783293,0.0003041,2]
[310288408,1704463861665,-500.0,0.0003041,2]
[310288409,1704463861674,-338.51062259,0.0003041,2]
[310288410,1704463861683,-500.0,0.0003041,2]
[310288411,1704463861693,-500.0,0.0003041,2]
[310288412,1704463861703,-500.0,0.0003041,2]
[310288413,1704463861713,-500.0,0.0003041,2]
[310288414,1704463861723,-500.0,0.0003041,2]
[310288415,1704463861733,-500.0,0.0003041,2]
[310288416,1704463861743,-500.0,0.0003041,2]
[310288417,1704463861753,-500.0,0.0003041,2]
[310288418,1704463861763,-500.0,0.0003041,2]
[310288419,1704463861773,-500.0,0.0003041,2]
[310288420,1704463861782,-500.0,0.0003041,2]
[310288421,1704463861792,-500.0,0.0003041,2]
[310288422,1704463861801,-500.0,0.0003041,2]
[310288423,1704463861810,-500.0,0.0003041,2]
[310288424,1704463861821,-500.0,0.0003041,2]
[310288425,1704463861831,-500.0,0.0003041,2]
[310288426,1704463861841,-500.0,0.0003041,2]
[310288427,1704463861851,-500.0,0.0003041,2]
[310288428,1704463861861,-500.0,0.0003041,2]
[310288429,1704463861872,-500.0,0.0003041,2]
[310288430,1704463861882,-500.0,0.0003041,2]
[310288431,1704463861892,-500.0,0.0003041,2]
[310288432,1704463861902,-500.0,0.0003041,2]
[310288433,1704463861913,-500.0,0.0003041,2]
[310288434,1704463861922,-593.91318038,0.0003041,2]
[310288435,1704463861933,-500.0,0.0003041,2]
[310288436,1704463862089,-500.0,0.0003041,2]
[310288437,1704463862099,-500.0,0.0003041,2]
[310288438,1704463862109,-500.0,0.0003041,2]
[310288439,1704463862119,-500.0,0.0003041,2]
[310288440,1704463862128,-500.0,0.0003041,2]
[310288441,1704463862138,-500.0,0.0003041,2]
[310288442,1704463862148,-500.0,0.0003041,2]
[310288443,1704463862157,-506.28887537,0.0003041,2]
[310288444,1704463862166,-500.0,0.0003041,2]
[310288445,1704463862176,-500.0,0.0003041,2]
[310288446,1704463862185,-500.0,0.0003041,2]
[310288447,1704463862196,-532.7681151,0.0003041,2]
[310288448,1704463862205,-500.0,0.0003041,2]
[310288449,1704463862215,-500.0,0.0003041,2]
[310288450,1704463862225,-500.0,0.0003041,2]
[310288451,1704463862234,-520.42125005,0.0003041,2]
[310288452,1704463862244,-648.30837292,0.0003041,2]
[310288453,1704463862254,-500.0,0.0003041,2]
[310288454,1704463862263,-500.0,0.0003041,2]
[310288455,1704463862273,-500.0,0.0003041,2]